[Event "Late-Titled-Tuesday-Blitz-July-09-2024"]
[Site "Chess.com"]
[Date "2024.07.09"]
[Round "4"]
[White "invisible_s0ul"]
[Black "Gangster-accountant01"]
[Result "1-0"]
[WhiteElo "2409"]
[BlackElo "2575"]
[TimeControl "180+1"]
[EndTime "14:41:07 PDT"]
[Termination "invisible_s0ul won by resignation"]

1. e4 {[%clk 0:03:00.9]} 1... e5 {[%clk 0:02:59.9]} 2. Nc3 {[%clk 0:02:58.7]}
2... Nf6 {[%clk 0:02:59.5]} 3. d4 {[%clk 0:02:57.6]} 3... exd4 {[%clk
0:02:52.8]} 4. Qxd4 {[%clk 0:02:58.5]} 4... Nc6 {[%clk 0:02:51.3]} 5. Qd1 {[%clk
0:02:58.3]} 5... Bb4 {[%clk 0:02:50.9]} 6. Bd3 {[%clk 0:02:57.8]} 6... d5 {[%clk
0:02:48.5]} 7. exd5 {[%clk 0:02:53.3]} 7... Nxd5 {[%clk 0:02:46.5]} 8. Ne2
{[%clk 0:02:52.8]} 8... Bg4 {[%clk 0:02:28.6]} 9. f3 {[%clk 0:02:51.4]} 9... Be6
{[%clk 0:02:06.4]} 10. O-O {[%clk 0:02:49.9]} 10... O-O {[%clk 0:02:06]} 11.
Nxd5 {[%clk 0:02:47.1]} 11... Qxd5 {[%clk 0:02:01.6]} 12. Nf4 {[%clk 0:02:40.5]}
12... Qd6 {[%clk 0:01:38]} 13. Nxe6 {[%clk 0:02:32.1]} 13... fxe6 {[%clk
0:01:37.3]} 14. Be3 {[%clk 0:02:27.1]} 14... Rad8 {[%clk 0:01:35.4]} 15. a3
{[%clk 0:02:21.6]} 15... Bc5 {[%clk 0:01:34.4]} 16. Qe2 {[%clk 0:02:15.7]} 16...
Nd4 {[%clk 0:01:08.4]} 17. Qf2 {[%clk 0:01:59.4]} 17... Bb6 {[%clk 0:01:02.7]}
18. Rad1 {[%clk 0:01:50.2]} 18... Qe5 {[%clk 0:00:57.3]} 19. Rfe1 {[%clk
0:01:43.9]} 19... Qf6 {[%clk 0:00:46.9]} 20. c3 {[%clk 0:01:36.9]} 20... Nf5
{[%clk 0:00:39]} 21. Bxb6 {[%clk 0:01:34.6]} 21... axb6 {[%clk 0:00:39.9]} 22.
Bc4 {[%clk 0:01:33.5]} 22... Rxd1 {[%clk 0:00:39.2]} 23. Rxd1 {[%clk 0:01:34.4]}
23... Nd6 {[%clk 0:00:38.7]} 24. Bb3 {[%clk 0:01:31]} 24... Kh8 {[%clk 0:00:38]}
25. Re1 {[%clk 0:01:31.1]} 25... e5 {[%clk 0:00:37.9]} 26. Qe3 {[%clk
0:01:30.1]} 26... e4 {[%clk 0:00:36.4]} 27. fxe4 {[%clk 0:01:11.5]} 27... Nxe4
{[%clk 0:00:35.8]} 28. Bc2 {[%clk 0:01:11.5]} 28... Nd6 {[%clk 0:00:33.4]} 29.
h3 {[%clk 0:01:00.7]} 29... g6 {[%clk 0:00:16.5]} 30. Bd3 {[%clk 0:00:46.6]}
30... Re8 {[%clk 0:00:14]} 31. Qf2 {[%clk 0:00:44.1]} 31... Qxf2+ {[%clk
0:00:13.5]} 32. Kxf2 {[%clk 0:00:44.2]} 32... Rf8+ {[%clk 0:00:13.7]} 33. Kg3
{[%clk 0:00:36.7]} 33... Rf7 {[%clk 0:00:14.1]} 34. Kh2 {[%clk 0:00:21.2]} 34...
Kg7 {[%clk 0:00:13.5]} 35. Re2 {[%clk 0:00:21.4]} 35... Rd7 {[%clk 0:00:13.5]}
36. Bc2 {[%clk 0:00:19.9]} 36... Nf7 {[%clk 0:00:13.5]} 37. Bb3 {[%clk
0:00:19.4]} 37... Nd6 {[%clk 0:00:12.5]} 38. Bd5 {[%clk 0:00:17.9]} 38... c6
{[%clk 0:00:12.6]} 39. Be6 {[%clk 0:00:17]} 39... Re7 {[%clk 0:00:12.8]} 40. Bg4
{[%clk 0:00:17.5]} 40... Kf6 {[%clk 0:00:12.3]} 41. Rxe7 {[%clk 0:00:15.3]}
41... Kxe7 {[%clk 0:00:13.2]} 42. Be2 {[%clk 0:00:16]} 42... b5 {[%clk
0:00:11.9]} 43. Kg3 {[%clk 0:00:16.3]} 43... Ke6 {[%clk 0:00:12.3]} 44. Kf4
{[%clk 0:00:16.5]} 44... Kd5 {[%clk 0:00:12.6]} 45. Ke3 {[%clk 0:00:16.9]} 45...
Nc4+ {[%clk 0:00:12.1]} 46. Bxc4+ {[%clk 0:00:11.1]} 46... Kxc4 {[%clk 0:00:13]}
47. Kd2 {[%clk 0:00:11.5]} 47... Kb3 {[%clk 0:00:12.3]} 48. Kc1 {[%clk 0:00:12]}
48... c5 {[%clk 0:00:12.8]} 49. Kb1 {[%clk 0:00:08.8]} 49... b6 {[%clk
0:00:10.2]} 50. Kc1 {[%clk 0:00:08.4]} 50... b4 {[%clk 0:00:02.8]} 51. axb4
{[%clk 0:00:07.7]} 51... cxb4 {[%clk 0:00:03.7]} 52. cxb4 {[%clk 0:00:07.7]}
52... Kxb4 {[%clk 0:00:04.6]} 53. Kc2 {[%clk 0:00:08.3]} 53... Kc4 {[%clk
0:00:05.2]} 54. b3+ {[%clk 0:00:08.2]} 54... Kb4 {[%clk 0:00:05.7]} 55. Kb2
{[%clk 0:00:08.6]} 55... b5 {[%clk 0:00:04.2]} 56. g3 {[%clk 0:00:09.1]} 56...
h6 {[%clk 0:00:04.1]} 57. g4 {[%clk 0:00:08.7]} 57... g5 {[%clk 0:00:03.8]} 58.
Kc2 {[%clk 0:00:08.9]} 58... Kc5 {[%clk 0:00:02.5]} 59. Kc3 {[%clk 0:00:09]}
59... b4+ {[%clk 0:00:03]} 60. Kd3 {[%clk 0:00:08.7]} 60... Kd5 {[%clk
0:00:03.6]} 61. Ke3 {[%clk 0:00:09.1]} 61... Ke5 {[%clk 0:00:04.2]} 62. Kd3
{[%clk 0:00:09.5]} 62... Kf4 {[%clk 0:00:04.9]} 63. Kc4 {[%clk 0:00:09.9]} 63...
Kg3 {[%clk 0:00:05.6]} 64. Kxb4 {[%clk 0:00:10.4]} 64... Kxh3 {[%clk 0:00:06.3]}
65. Ka5 {[%clk 0:00:10.4]} 65... Kxg4 {[%clk 0:00:07]} 66. b4 {[%clk 0:00:10.9]}
66... h5 {[%clk 0:00:05]} 67. b5 {[%clk 0:00:11.8]} 67... h4 {[%clk 0:00:05.6]}
68. b6 {[%clk 0:00:12.7]} 68... h3 {[%clk 0:00:06.3]} 69. b7 {[%clk 0:00:13.6]}
69... h2 {[%clk 0:00:07]} 70. b8=Q {[%clk 0:00:13]} 70... h1=Q {[%clk
0:00:07.5]} 71. Qc8+ {[%clk 0:00:10]} 71... Kg3 {[%clk 0:00:07.6]} 72. Qc7+
{[%clk 0:00:09]} 72... Kh3 {[%clk 0:00:01.9]} 73. Qh7+ {[%clk 0:00:08]} 73...
Kg2 {[%clk 0:00:01.8]} 74. Qe4+ {[%clk 0:00:07.9]} 74... Kh2 {[%clk 0:00:02.5]}
75. Qe5+ {[%clk 0:00:07.1]} 75... Kh3 {[%clk 0:00:03.1]} 76. Qxg5 {[%clk
0:00:06.2]} 76... Qa1+ {[%clk 0:00:03.8]} 77. Kb5 {[%clk 0:00:05.9]} 77... Qg1
{[%clk 0:00:03.8]} 78. Qxg1 {[%clk 0:00:05.6]} 1-0

[Event "Late-Titled-Tuesday-Blitz-July-09-2024"]
[Site "Chess.com"]
[Date "2024.07.09"]
[Round "4"]
[White "Good_Knight_Kiss"]
[Black "HPanesso"]
[Result "1-0"]
[WhiteElo "2396"]
[BlackElo "2533"]
[TimeControl "180+1"]
[EndTime "14:41:12 PDT"]
[Termination "Good_Knight_Kiss won by resignation"]

1. e4 {[%clk 0:03:00.9]} 1... e5 {[%clk 0:02:57.8]} 2. Nf3 {[%clk 0:02:43.4]}
2... Nc6 {[%clk 0:02:55.4]} 3. Bb5 {[%clk 0:02:42.8]} 3... a6 {[%clk 0:02:50.4]}
4. Ba4 {[%clk 0:02:42.2]} 4... d6 {[%clk 0:02:47.9]} 5. O-O {[%clk 0:02:40.1]}
5... Bd7 {[%clk 0:02:43.3]} 6. c3 {[%clk 0:02:32.8]} 6... g6 {[%clk 0:02:36.7]}
7. d4 {[%clk 0:02:29.2]} 7... Bg7 {[%clk 0:02:05.4]} 8. Bg5 {[%clk 0:02:22.9]}
8... Nge7 {[%clk 0:01:46.9]} 9. dxe5 {[%clk 0:02:10.3]} 9... dxe5 {[%clk
0:01:44.9]} 10. Nbd2 {[%clk 0:02:08.9]} 10... O-O {[%clk 0:01:42.9]} 11. Re1
{[%clk 0:02:04.5]} 11... b5 {[%clk 0:01:37.6]} 12. Bb3 {[%clk 0:02:03.1]} 12...
h6 {[%clk 0:01:36.4]} 13. Be3 {[%clk 0:02:01.6]} 13... Kh7 {[%clk 0:01:33.8]}
14. Bc5 {[%clk 0:01:52.6]} 14... Na5 {[%clk 0:00:55.5]} 15. Nf1 {[%clk
0:01:38.5]} 15... Nxb3 {[%clk 0:00:53.2]} 16. axb3 {[%clk 0:01:39.4]} 16... f5
{[%clk 0:00:39.9]} 17. Ng3 {[%clk 0:01:34.5]} 17... f4 {[%clk 0:00:37.4]} 18.
Nf1 {[%clk 0:01:25.7]} 18... Rf7 {[%clk 0:00:35.5]} 19. Qd3 {[%clk 0:01:08.5]}
19... Bg4 {[%clk 0:00:27.7]} 20. Qxd8 {[%clk 0:01:02.1]} 20... Rxd8 {[%clk
0:00:28.6]} 21. Rxa6 {[%clk 0:00:58.6]} 21... Bxf3 {[%clk 0:00:23.8]} 22. gxf3
{[%clk 0:00:59.5]} 22... Rd3 {[%clk 0:00:24]} 23. Kg2 {[%clk 0:00:54.3]} 23...
g5 {[%clk 0:00:23]} 24. h3 {[%clk 0:00:52.9]} 24... Ng6 {[%clk 0:00:22.7]} 25.
Nh2 {[%clk 0:00:46.7]} 25... Nh4+ {[%clk 0:00:22.3]} 26. Kf1 {[%clk 0:00:46.7]}
26... Nxf3 {[%clk 0:00:20]} 27. Nxf3 {[%clk 0:00:45.6]} 27... Rxf3 {[%clk
0:00:20.9]} 28. Kg2 {[%clk 0:00:37.7]} 28... Rd3 {[%clk 0:00:20.4]} 29. Rea1
{[%clk 0:00:04.7]} 29... f3+ {[%clk 0:00:17.7]} 30. Kg3 {[%clk 0:00:05]} 30...
Rd2 {[%clk 0:00:18.3]} 31. Rc6 {[%clk 0:00:02.8]} 31... Rf4 {[%clk 0:00:17.6]}
32. Ra7 {[%clk 0:00:02]} 32... h5 {[%clk 0:00:17]} 33. Rcxc7 {[%clk 0:00:01.7]}
33... h4+ {[%clk 0:00:15.7]} 34. Kh2 {[%clk 0:00:02]} 34... Kh6 {[%clk
0:00:12.3]} 35. Rxg7 {[%clk 0:00:01.9]} 35... Rxb2 {[%clk 0:00:11.9]} 36. Rh7+
{[%clk 0:00:02.2]} 36... Kg6 {[%clk 0:00:12]} 37. Rag7+ {[%clk 0:00:02.7]} 37...
Kf6 {[%clk 0:00:12.3]} 38. Rf7+ {[%clk 0:00:03.1]} 38... Ke6 {[%clk 0:00:11.7]}
39. Re7+ {[%clk 0:00:02.9]} 39... Kf6 {[%clk 0:00:11.9]} 40. Rhf7+ {[%clk
0:00:02.9]} 40... Kg6 {[%clk 0:00:12]} 41. Rxf4 {[%clk 0:00:03.2]} 41... gxf4
{[%clk 0:00:10.2]} 42. Rxe5 {[%clk 0:00:03]} 42... Rxb3 {[%clk 0:00:09.8]} 43.
Bd4 {[%clk 0:00:02.9]} 43... Rb2 {[%clk 0:00:09.1]} 44. Rf5 {[%clk 0:00:03.1]}
44... Rd2 {[%clk 0:00:09.2]} 45. Rxf4 {[%clk 0:00:02.9]} 45... b4 {[%clk
0:00:09.8]} 46. Rxf3 {[%clk 0:00:02.8]} 46... b3 {[%clk 0:00:08.7]} 47. Rf8
{[%clk 0:00:02]} 47... b2 {[%clk 0:00:07.2]} 48. Rb8 {[%clk 0:00:02]} 48... Rc2
{[%clk 0:00:07.6]} 49. Kg2 {[%clk 0:00:02.2]} 49... Kg5 {[%clk 0:00:07.4]} 50.
Kf3 {[%clk 0:00:02.5]} 50... Kg6 {[%clk 0:00:06.4]} 51. Ke3 {[%clk 0:00:02.9]}
51... Kf7 {[%clk 0:00:06.2]} 52. Kd3 {[%clk 0:00:03.2]} 52... Rc1 {[%clk
0:00:06.3]} 53. Rxb2 {[%clk 0:00:03.3]} 53... Rh1 {[%clk 0:00:06.7]} 54. Rb7+
{[%clk 0:00:03.1]} 54... Ke6 {[%clk 0:00:07]} 55. Rb6+ {[%clk 0:00:03.1]} 55...
Kd7 {[%clk 0:00:07.6]} 56. Ke3 {[%clk 0:00:03.4]} 56... Rxh3+ {[%clk 0:00:05.3]}
57. Kf4 {[%clk 0:00:03.8]} 57... Rh1 {[%clk 0:00:05.7]} 58. Rh6 {[%clk
0:00:03.5]} 58... h3 {[%clk 0:00:05.8]} 59. Kg3 {[%clk 0:00:03.7]} 59... Rg1+
{[%clk 0:00:06.3]} 60. Kh2 {[%clk 0:00:03.4]} 60... Re1 {[%clk 0:00:06.2]} 61.
Rxh3 {[%clk 0:00:02.8]} 61... Rxe4 {[%clk 0:00:05.9]} 62. Rh6 {[%clk 0:00:02.7]}
62... Re2 {[%clk 0:00:05.9]} 63. Kg3 {[%clk 0:00:02.8]} 63... Rc2 {[%clk
0:00:06.8]} 64. Kf3 {[%clk 0:00:03.1]} 64... Ke7 {[%clk 0:00:07.6]} 65. Ke4
{[%clk 0:00:03.4]} 65... Kf7 {[%clk 0:00:07.3]} 66. f4 {[%clk 0:00:03.4]} 66...
Re2+ {[%clk 0:00:06.8]} 67. Kd3 {[%clk 0:00:03.1]} 67... Ra2 {[%clk 0:00:06.6]}
68. Rb6 {[%clk 0:00:02.8]} 68... Ke7 {[%clk 0:00:06.4]} 69. Ke4 {[%clk
0:00:03.1]} 69... Re2+ {[%clk 0:00:06.2]} 70. Kd5 {[%clk 0:00:03.3]} 70... Ra2
{[%clk 0:00:06.8]} 71. Rb7+ {[%clk 0:00:03]} 71... Kd8 {[%clk 0:00:06.9]} 72.
Be5 {[%clk 0:00:03.3]} 72... Ra6 {[%clk 0:00:05.5]} 73. c4 {[%clk 0:00:02.8]}
73... Kc8 {[%clk 0:00:04.9]} 74. Rg7 {[%clk 0:00:02]} 74... Kd8 {[%clk
0:00:04.8]} 75. c5 {[%clk 0:00:02.5]} 75... Rh6 {[%clk 0:00:03.7]} 76. Bd6
{[%clk 0:00:02.4]} 76... Kc8 {[%clk 0:00:02.9]} 77. Kc6 {[%clk 0:00:02.3]} 77...
Rh8 {[%clk 0:00:01]} 78. f5 {[%clk 0:00:01.8]} 78... Re8 {[%clk 0:00:01.6]} 79.
f6 {[%clk 0:00:02.1]} 79... Rh8 {[%clk 0:00:02.5]} 80. f7 {[%clk 0:00:02.5]}
80... Kd8 {[%clk 0:00:02.7]} 81. Rg8+ {[%clk 0:00:02.9]} 1-0

[Event "Late-Titled-Tuesday-Blitz-July-09-2024"]
[Site "Chess.com"]
[Date "2024.07.09"]
[Round "4"]
[White "ELPRIMO0O0"]
[Black "stollenmonster"]
[Result "1-0"]
[WhiteElo "2618"]
[BlackElo "2864"]
[TimeControl "180+1"]
[EndTime "14:41:22 PDT"]
[Termination "ELPRIMO0O0 won by resignation"]

1. e4 {[%clk 0:03:00.9]} 1... c5 {[%clk 0:03:00.4]} 2. d3 {[%clk 0:03:00.7]}
2... Nc6 {[%clk 0:03:00]} 3. g3 {[%clk 0:03:01.2]} 3... g6 {[%clk 0:03:00.5]} 4.
Bg2 {[%clk 0:03:01.6]} 4... Bg7 {[%clk 0:03:01.2]} 5. f4 {[%clk 0:03:02.5]} 5...
e6 {[%clk 0:03:01.2]} 6. Nf3 {[%clk 0:03:03.4]} 6... Nge7 {[%clk 0:03:01.3]} 7.
O-O {[%clk 0:03:04]} 7... O-O {[%clk 0:03:01.2]} 8. c3 {[%clk 0:03:04.9]} 8...
d5 {[%clk 0:03:01.3]} 9. Na3 {[%clk 0:03:05.5]} 9... b6 {[%clk 0:03:01]} 10. e5
{[%clk 0:03:05.5]} 10... d4 {[%clk 0:02:52.5]} 11. c4 {[%clk 0:03:04.9]} 11...
Bb7 {[%clk 0:02:52.2]} 12. Nc2 {[%clk 0:02:58.9]} 12... Qd7 {[%clk 0:02:47.4]}
13. Bd2 {[%clk 0:02:59]} 13... f6 {[%clk 0:02:47.7]} 14. exf6 {[%clk 0:02:59.1]}
14... Bxf6 {[%clk 0:02:48.6]} 15. Qe2 {[%clk 0:02:52.1]} 15... Nf5 {[%clk
0:02:46]} 16. g4 {[%clk 0:02:49.6]} 16... Ne3 {[%clk 0:02:42.3]} 17. Nxe3 {[%clk
0:02:47.5]} 17... dxe3 {[%clk 0:02:42.4]} 18. Bxe3 {[%clk 0:02:48.4]} 18... Rad8
{[%clk 0:02:39]} 19. Rad1 {[%clk 0:02:47.8]} 19... Nd4 {[%clk 0:02:35.6]} 20.
Nxd4 {[%clk 0:02:43.4]} 20... Bxg2 {[%clk 0:02:29.3]} 21. Kxg2 {[%clk
0:02:44.3]} 21... cxd4 {[%clk 0:02:26.7]} 22. Bd2 {[%clk 0:02:39.7]} 22... Rfe8
{[%clk 0:02:23.9]} 23. Qe4 {[%clk 0:02:26.1]} 23... Qa4 {[%clk 0:02:20.9]} 24.
a3 {[%clk 0:02:26.6]} 24... Qb3 {[%clk 0:02:15.4]} 25. Bc1 {[%clk 0:02:26.1]}
25... b5 {[%clk 0:02:14.1]} 26. cxb5 {[%clk 0:02:16.6]} 26... Qxb5 {[%clk
0:02:15]} 27. Rfe1 {[%clk 0:02:02.8]} 27... a5 {[%clk 0:02:03.7]} 28. Re2 {[%clk
0:02:00.4]} 28... a4 {[%clk 0:01:52.4]} 29. Kg3 {[%clk 0:01:56.1]} 29... Qd5
{[%clk 0:01:49.3]} 30. Qxd5 {[%clk 0:01:51.8]} 30... Rxd5 {[%clk 0:01:46.5]} 31.
Rde1 {[%clk 0:01:51.6]} 31... Kf7 {[%clk 0:01:46.3]} 32. Bd2 {[%clk 0:01:51.2]}
32... Rd6 {[%clk 0:01:34.7]} 33. Rc1 {[%clk 0:01:46.2]} 33... Rd7 {[%clk
0:01:31.3]} 34. Rc6 {[%clk 0:01:42.4]} 34... Rb7 {[%clk 0:01:25.4]} 35. Bb4
{[%clk 0:01:42.6]} 35... Rd7 {[%clk 0:01:25.6]} 36. Ra6 {[%clk 0:01:40.4]} 36...
g5 {[%clk 0:01:10.1]} 37. Rxa4 {[%clk 0:01:33.7]} 37... gxf4+ {[%clk 0:01:10.3]}
38. Kxf4 {[%clk 0:01:34.6]} 38... h6 {[%clk 0:01:10.5]} 39. Ra6 {[%clk
0:01:25.5]} 39... Rd5 {[%clk 0:01:09.9]} 40. Kg3 {[%clk 0:01:16.7]} 40... Bg5
{[%clk 0:01:03.4]} 41. Ra7+ {[%clk 0:01:13.5]} 41... Kg6 {[%clk 0:01:02.2]} 42.
Ra6 {[%clk 0:01:13.9]} 42... Kf7 {[%clk 0:01:01.8]} 43. Ra7+ {[%clk 0:01:08.2]}
43... Kg6 {[%clk 0:01:01.7]} 44. h4 {[%clk 0:01:08.8]} 44... Be3 {[%clk
0:00:59.6]} 45. h5+ {[%clk 0:01:05.8]} 45... Kf6 {[%clk 0:00:57.3]} 46. Re1
{[%clk 0:01:04.8]} 46... e5 {[%clk 0:00:48.1]} 47. Rf1+ {[%clk 0:00:57.8]} 47...
Bf4+ {[%clk 0:00:41]} 48. Kf3 {[%clk 0:00:57.9]} 48... Kg5 {[%clk 0:00:35.5]}
49. Rg7+ {[%clk 0:00:55.3]} 49... Kf6 {[%clk 0:00:32.4]} 50. Rg6+ {[%clk
0:00:55.8]} 50... Kf7 {[%clk 0:00:32.5]} 51. Ke4 {[%clk 0:00:54.8]} 51... Rb5
{[%clk 0:00:32.3]} 52. g5 {[%clk 0:00:48.8]} 52... hxg5 {[%clk 0:00:31.9]} 53.
Rxg5 {[%clk 0:00:49.7]} 53... Rc8 {[%clk 0:00:18]} 54. Rg2 {[%clk 0:00:44.7]}
54... Rh8 {[%clk 0:00:16]} 55. Rh1 {[%clk 0:00:43]} 55... Rbb8 {[%clk
0:00:14.6]} 56. Kf5 {[%clk 0:00:33.4]} 56... Rbg8 {[%clk 0:00:13.3]} 57. Rxg8
{[%clk 0:00:33.4]} 57... Rxg8 {[%clk 0:00:14.1]} 58. h6 {[%clk 0:00:29.1]} 58...
Rg5+ {[%clk 0:00:14.3]} 59. Ke4 {[%clk 0:00:28.7]} 59... Ke6 {[%clk 0:00:15]}
60. h7 {[%clk 0:00:26.1]} 60... Rg3 {[%clk 0:00:15.5]} 61. Re1 {[%clk
0:00:16.4]} 61... Rh3 {[%clk 0:00:16.1]} 62. a4 {[%clk 0:00:10.7]} 62... Rxh7
{[%clk 0:00:15.3]} 63. a5 {[%clk 0:00:11.3]} 63... Rb7 {[%clk 0:00:14.1]} 64.
Ba3 {[%clk 0:00:08.7]} 64... Rg7 {[%clk 0:00:12.6]} 65. Bc5 {[%clk 0:00:04.9]}
65... Be3 {[%clk 0:00:08.7]} 66. a6 {[%clk 0:00:03.7]} 66... Rg4+ {[%clk
0:00:07.8]} 67. Kf3 {[%clk 0:00:04.1]} 67... Rf4+ {[%clk 0:00:08.1]} 68. Kg2
{[%clk 0:00:04.4]} 68... Rf2+ {[%clk 0:00:08.5]} 69. Kg3 {[%clk 0:00:05.1]}
69... Rxb2 {[%clk 0:00:09.1]} 70. a7 {[%clk 0:00:05.5]} 70... Ra2 {[%clk
0:00:08.7]} 71. Rb1 {[%clk 0:00:06]} 71... Bf4+ {[%clk 0:00:07.1]} 72. Kf3
{[%clk 0:00:06]} 72... Kd5 {[%clk 0:00:05.3]} 73. Rb8 {[%clk 0:00:05.4]} 73...
Kxc5 {[%clk 0:00:02]} 74. a8=Q {[%clk 0:00:05.6]} 74... Rxa8 {[%clk 0:00:02.6]}
75. Rxa8 {[%clk 0:00:06.5]} 75... Kb4 {[%clk 0:00:03]} 76. Rc8 {[%clk
0:00:05.7]} 76... Kb3 {[%clk 0:00:03.3]} 77. Ke4 {[%clk 0:00:06.4]} 77... Kb4
{[%clk 0:00:03.8]} 78. Rc6 {[%clk 0:00:04.4]} 78... Kb3 {[%clk 0:00:04.3]} 79.
Rc5 {[%clk 0:00:04.9]} 79... Kb2 {[%clk 0:00:04.8]} 80. Kd5 {[%clk 0:00:03.1]}
80... Kb3 {[%clk 0:00:03.9]} 81. Ke4 {[%clk 0:00:03.8]} 81... Kb2 {[%clk
0:00:04.3]} 82. Rc8 {[%clk 0:00:04.7]} 82... Bg3 {[%clk 0:00:04.2]} 83. Kf3
{[%clk 0:00:05.6]} 83... Bf4 {[%clk 0:00:04]} 84. Ke2 {[%clk 0:00:06.4]} 84...
Kb3 {[%clk 0:00:04.2]} 85. Kf2 {[%clk 0:00:06.5]} 85... Kb4 {[%clk 0:00:04.5]}
86. Kf3 {[%clk 0:00:07.2]} 86... Kb3 {[%clk 0:00:05.1]} 87. Ke4 {[%clk
0:00:07.9]} 87... Kb2 {[%clk 0:00:05.7]} 88. Rc5 {[%clk 0:00:08.6]} 88... Kb3
{[%clk 0:00:05]} 89. Rxe5 {[%clk 0:00:02.9]} 89... Be3 {[%clk 0:00:05.3]} 90.
Rc5 {[%clk 0:00:02.5]} 90... Kb2 {[%clk 0:00:05.1]} 91. Rc4 {[%clk 0:00:03.3]}
91... Bg1 {[%clk 0:00:05.1]} 92. Rxd4 {[%clk 0:00:03.5]} 92... Bxd4 {[%clk
0:00:05.8]} 93. Kxd4 {[%clk 0:00:04.4]} 93... Kb3 {[%clk 0:00:06.5]} 94. Kc5
{[%clk 0:00:04.9]} 1-0

[Event "Late-Titled-Tuesday-Blitz-July-09-2024"]
[Site "Chess.com"]
[Date "2024.07.09"]
[Round "5"]
[White "duone"]
[Black "ExchangeAB"]
[Result "0-1"]
[WhiteElo "2311"]
[BlackElo "2462"]
[TimeControl "180+1"]
[EndTime "14:49:44 PDT"]
[Termination "ExchangeAB won by resignation"]

1. Nf3 {[%clk 0:03:00.9]} 1... Nf6 {[%clk 0:02:59]} 2. c4 {[%clk 0:02:59.1]}
2... c6 {[%clk 0:02:57.3]} 3. g3 {[%clk 0:02:57]} 3... d5 {[%clk 0:02:58.2]} 4.
Bg2 {[%clk 0:02:57]} 4... dxc4 {[%clk 0:02:58.1]} 5. a4 {[%clk 0:02:55.2]} 5...
e6 {[%clk 0:02:56.3]} 6. Na3 {[%clk 0:02:53.4]} 6... Bxa3 {[%clk 0:02:51]} 7.
Rxa3 {[%clk 0:02:53.6]} 7... O-O {[%clk 0:02:50.6]} 8. O-O {[%clk 0:02:53.3]}
8... b5 {[%clk 0:02:49.9]} 9. axb5 {[%clk 0:02:47.9]} 9... cxb5 {[%clk
0:02:49.7]} 10. Qc2 {[%clk 0:02:48.3]} 10... Bb7 {[%clk 0:02:44.8]} 11. b3
{[%clk 0:02:43.6]} 11... cxb3 {[%clk 0:02:42.7]} 12. Rxb3 {[%clk 0:02:43.4]}
12... a6 {[%clk 0:02:41.5]} 13. Ba3 {[%clk 0:02:43.6]} 13... Re8 {[%clk
0:02:38]} 14. Rd3 {[%clk 0:02:43.6]} 14... Qc8 {[%clk 0:02:26.6]} 15. Qb3 {[%clk
0:02:39.7]} 15... Bd5 {[%clk 0:02:24.3]} 16. Qb2 {[%clk 0:02:38]} 16... Qb7
{[%clk 0:02:18.1]} 17. Bd6 {[%clk 0:02:32.1]} 17... Nc6 {[%clk 0:02:14.8]} 18.
Ne5 {[%clk 0:02:27.3]} 18... Bxg2 {[%clk 0:02:05.7]} 19. Kxg2 {[%clk 0:02:26.2]}
19... Nxe5+ {[%clk 0:02:05.5]} 0-1

[Event "Late-Titled-Tuesday-Blitz-July-09-2024"]
[Site "Chess.com"]
[Date "2024.07.09"]
[Round "5"]
[White "stollenmonster"]
[Black "Mattheii"]
[Result "1-0"]
[WhiteElo "2866"]
[BlackElo "2486"]
[TimeControl "180+1"]
[EndTime "14:50:01 PDT"]
[Termination "stollenmonster won by resignation"]

1. e4 {[%clk 0:03:00.9]} 1... c5 {[%clk 0:02:26.3]} 2. Nf3 {[%clk 0:03:00.5]}
2... d6 {[%clk 0:02:26.8]} 3. d4 {[%clk 0:03:00.3]} 3... cxd4 {[%clk 0:02:27.7]}
4. Nxd4 {[%clk 0:03:00.7]} 4... Nf6 {[%clk 0:02:28.4]} 5. Nc3 {[%clk 0:03:00.9]}
5... Nc6 {[%clk 0:02:29.1]} 6. g3 {[%clk 0:03:00.9]} 6... g6 {[%clk 0:02:28.8]}
7. Nde2 {[%clk 0:03:01]} 7... Bg7 {[%clk 0:02:28.6]} 8. Bg2 {[%clk 0:03:01.5]}
8... O-O {[%clk 0:02:28.7]} 9. h3 {[%clk 0:03:02.2]} 9... Rb8 {[%clk 0:02:25.1]}
10. a4 {[%clk 0:03:02.7]} 10... a6 {[%clk 0:02:17.1]} 11. O-O {[%clk 0:03:03.2]}
11... b5 {[%clk 0:02:15.9]} 12. axb5 {[%clk 0:03:04.1]} 12... axb5 {[%clk
0:02:16.8]} 13. Be3 {[%clk 0:03:04.8]} 13... Nd7 {[%clk 0:02:05.6]} 14. Nd4
{[%clk 0:02:59.4]} 14... Nxd4 {[%clk 0:02:01.5]} 15. Bxd4 {[%clk 0:03:00.3]}
15... b4 {[%clk 0:01:45.9]} 16. Bxg7 {[%clk 0:02:59.5]} 16... Kxg7 {[%clk
0:01:46.8]} 17. Nd5 {[%clk 0:02:59.3]} 17... e6 {[%clk 0:01:39.1]} 18. Qd4+
{[%clk 0:02:53.1]} 18... Kg8 {[%clk 0:01:35.6]} 19. Nxb4 {[%clk 0:02:51.5]}
19... Nc5 {[%clk 0:01:31.7]} 20. Nc6 {[%clk 0:02:47.1]} 1-0

[Event "Late-Titled-Tuesday-Blitz-July-09-2024"]
[Site "Chess.com"]
[Date "2024.07.09"]
[Round "5"]
[White "ural58"]
[Black "Ykow"]
[Result "1-0"]
[WhiteElo "2474"]
[BlackElo "2709"]
[TimeControl "180+1"]
[EndTime "14:50:58 PDT"]
[Termination "ural58 won by resignation"]

1. e4 {[%clk 0:03:00.9]} 1... c5 {[%clk 0:02:58.4]} 2. b3 {[%clk 0:02:59.9]}
2... d6 {[%clk 0:02:45.5]} 3. f4 {[%clk 0:02:57.6]} 3... Nc6 {[%clk 0:02:44]} 4.
Bb2 {[%clk 0:02:56.7]} 4... a5 {[%clk 0:02:36.9]} 5. Bb5 {[%clk 0:02:54.8]} 5...
Qb6 {[%clk 0:02:31.5]} 6. a4 {[%clk 0:02:50]} 6... Nf6 {[%clk 0:02:04.4]} 7. Qe2
{[%clk 0:02:48.9]} 7... e6 {[%clk 0:01:34.3]} 8. g4 {[%clk 0:02:43.2]} 8... Qd8
{[%clk 0:01:31.4]} 9. g5 {[%clk 0:02:41.5]} 9... Nd7 {[%clk 0:01:30]} 10. Nf3
{[%clk 0:02:40.4]} 10... Nb4 {[%clk 0:01:14.9]} 11. Na3 {[%clk 0:02:39.2]} 11...
h6 {[%clk 0:01:09.5]} 12. g6 {[%clk 0:02:38.4]} 12... fxg6 {[%clk 0:01:07.6]}
13. Qg2 {[%clk 0:02:35.8]} 13... Kf7 {[%clk 0:00:50]} 14. Rg1 {[%clk 0:02:33.1]}
14... Nf6 {[%clk 0:00:49.8]} 15. Qxg6+ {[%clk 0:02:31.9]} 15... Kg8 {[%clk
0:00:49.2]} 16. Bxf6 {[%clk 0:02:30.9]} 16... Qxf6 {[%clk 0:00:49.4]} 17. Qxf6
{[%clk 0:02:30.6]} 1-0